[Event "Titled Tuesday Blitz February 21 Late 2023"]
[White "Yuan, Qingyu"]
[Black "Danielyan, Vahe"]
[WhiteFideId "8609772"]
[BlackFideId "13304828"]
[WhiteElo "2373"]
[BlackElo "2346"]
[Result "1-0"]
[Round "04"]
[TimeControl "180+2"]
[Date "2023.02.21"]
[WhiteClock "0:00:12"]
[BlackClock "0:00:37"]

1. e4 {[%clk 0:03:00]}  e5 {[%clk 0:03:00]} 2. Nf3 {[%clk 0:03:00]}  Nc6 {[%clk 0:03:01]} 3. Bb5 {[%clk 0:03:01]}  g6 {[%clk 0:03:00]} 4. d4 {[%clk 0:02:55]}  exd4 {[%clk 0:03:00]} 5. Bg5 {[%clk 0:02:55]}  Be7 {[%clk 0:03:01]} 6. Bxe7 {[%clk 0:02:52]}  Qxe7 {[%clk 0:03:01]} 7. O-O {[%clk 0:02:53]}  Nf6 {[%clk 0:03:02]} 8. e5 {[%clk 0:02:53]}  Nh5 {[%clk 0:03:01]} 9. Re1 {[%clk 0:02:37]}  O-O {[%clk 0:03:01]} 10. Qd2 {[%clk 0:02:20]}  d6 {[%clk 0:02:42]} 11. Qh6 {[%clk 0:01:46]}  dxe5 {[%clk 0:02:39]} 12. Ng5 {[%clk 0:01:46]}  f6 {[%clk 0:02:39]} 13. Bc4+ {[%clk 0:01:43]}  Kh8 {[%clk 0:02:28]} 14. Nxh7 {[%clk 0:01:43]}  Qg7 {[%clk 0:02:26]} 15. Qxg7+ {[%clk 0:01:40]}  Kxg7 {[%clk 0:02:27]} 16. Nxf8 {[%clk 0:01:41]}  Kxf8 {[%clk 0:02:28]} 17. Nd2 {[%clk 0:01:38]}  Bf5 {[%clk 0:02:25]} 18. c3 {[%clk 0:01:33]}  Rd8 {[%clk 0:02:24]} 19. Nb3 {[%clk 0:01:27]}  Nf4 {[%clk 0:01:56]} 20. Rad1 {[%clk 0:01:19]}  Bc2 {[%clk 0:01:56]} 21. Rd2 {[%clk 0:01:15]}  Bxb3 {[%clk 0:01:56]} 22. axb3 {[%clk 0:01:12]}  Ke7 {[%clk 0:01:49]} 23. g3 {[%clk 0:01:10]}  Ne6 {[%clk 0:01:23]} 24. f4 {[%clk 0:01:10]}  Kd6 {[%clk 0:01:24]} 25. b4 {[%clk 0:01:03]}  a6 {[%clk 0:01:24]} 26. fxe5+ {[%clk 0:00:54]}  fxe5 {[%clk 0:01:20]} 27. b5 {[%clk 0:00:48]}  axb5 {[%clk 0:01:18]} 28. Bxb5 {[%clk 0:00:48]}  Ng5 {[%clk 0:01:02]} 29. Kg2 {[%clk 0:00:48]}  e4 {[%clk 0:01:02]} 30. Bxc6 {[%clk 0:00:35]}  Nf3 {[%clk 0:01:02]} 31. Rxe4 {[%clk 0:00:35]}  Nxd2 {[%clk 0:00:52]} 32. Rxd4+ {[%clk 0:00:36]}  Ke7 {[%clk 0:00:51]} 33. Rxd8 {[%clk 0:00:37]}  Kxd8 {[%clk 0:00:52]} 34. Bxb7 {[%clk 0:00:37]}  Ke7 {[%clk 0:00:51]} 35. Bd5 {[%clk 0:00:29]}  Kd6 {[%clk 0:00:51]} 36. Ba2 {[%clk 0:00:27]}  Ke5 {[%clk 0:00:51]} 37. h4 {[%clk 0:00:27]}  Ke4 {[%clk 0:00:50]} 38. Kh3 {[%clk 0:00:23]}  c5 {[%clk 0:00:50]} 39. Bf7 {[%clk 0:00:20]}  Kf5 {[%clk 0:00:50]} 40. b4 {[%clk 0:00:19]}  cxb4 {[%clk 0:00:50]} 41. cxb4 {[%clk 0:00:19]}  Kf6 {[%clk 0:00:50]} 42. Bd5 {[%clk 0:00:19]}  Ke5 {[%clk 0:00:50]} 43. Bg2 {[%clk 0:00:18]}  Nc4 {[%clk 0:00:49]} 44. b5 {[%clk 0:00:17]}  Kf5 {[%clk 0:00:49]} 45. Bf1 {[%clk 0:00:16]}  Nb6 {[%clk 0:00:49]} 46. Bd3+ {[%clk 0:00:16]}  Kf6 {[%clk 0:00:50]} 47. Kg4 {[%clk 0:00:16]}  Nd5 {[%clk 0:00:51]} 48. Kf3 {[%clk 0:00:16]}  Nb6 {[%clk 0:00:51]} 49. Be4 {[%clk 0:00:16]}  Nc4 {[%clk 0:00:50]} 50. Bc6 {[%clk 0:00:16]}  Ke6 {[%clk 0:00:48]} 51. Kf4 {[%clk 0:00:16]}  Kf6 {[%clk 0:00:48]} 52. g4 {[%clk 0:00:17]}  Kg7 {[%clk 0:00:46]} 53. Ke4 {[%clk 0:00:16]}  Kf6 {[%clk 0:00:45]} 54. Kd4 {[%clk 0:00:16]}  Nb6 {[%clk 0:00:45]} 55. Kc5 {[%clk 0:00:17]}  Na4+ {[%clk 0:00:45]} 56. Kd6 {[%clk 0:00:15]}  g5 {[%clk 0:00:41]} 57. h5 {[%clk 0:00:15]}  Kf7 {[%clk 0:00:38]} 58. Bd5+ {[%clk 0:00:15]}  Kf6 {[%clk 0:00:38]} 59. Be4 {[%clk 0:00:14]}  Kg7 {[%clk 0:00:38]} 60. Kc7 {[%clk 0:00:12]}  Kh6 {[%clk 0:00:36]} 61. Bf5 {[%clk 0:00:12]}  Nc5 {[%clk 0:00:37]} 62. b6 {[%clk 0:00:12]} 1-0


[Site "https://www.chess.com"]

[Event "Titled Tuesday Blitz February 21 Late 2023"]
[White "Fiorito, Francisco"]
[Black "Gorshtein, Ido"]
[WhiteFideId "180165"]
[BlackFideId "2815532"]
[WhiteElo "2305"]
[BlackElo "2514"]
[Result "1-0"]
[Round "04"]
[TimeControl "180+2"]
[Date "2023.02.21"]
[WhiteClock "0:01:33"]
[BlackClock "0:00:27"]

1. d4 {[%clk 0:03:00]}  Nf6 {[%clk 0:02:59]} 2. Nc3 {[%clk 0:03:01]}  d5 {[%clk 0:02:57]} 3. Bf4 {[%clk 0:03:01]}  c5 {[%clk 0:02:54]} 4. e3 {[%clk 0:03:01]}  a6 {[%clk 0:02:54]} 5. dxc5 {[%clk 0:02:58]}  Nc6 {[%clk 0:02:51]} 6. Nf3 {[%clk 0:02:57]}  e6 {[%clk 0:02:49]} 7. Na4 {[%clk 0:02:53]}  Bxc5 {[%clk 0:02:47]} 8. Nxc5 {[%clk 0:02:49]}  Qa5+ {[%clk 0:02:47]} 9. c3 {[%clk 0:02:47]}  Qxc5 {[%clk 0:02:48]} 10. Bd3 {[%clk 0:02:47]}  O-O {[%clk 0:02:45]} 11. Qc2 {[%clk 0:02:47]}  h6 {[%clk 0:02:42]} 12. h3 {[%clk 0:02:45]}  Re8 {[%clk 0:02:37]} 13. Ne5 {[%clk 0:02:43]}  Nxe5 {[%clk 0:02:28]} 14. Bxe5 {[%clk 0:02:43]}  Nd7 {[%clk 0:02:27]} 15. Bg3 {[%clk 0:02:41]}  e5 {[%clk 0:02:24]} 16. O-O {[%clk 0:02:39]}  Nf6 {[%clk 0:02:23]} 17. Rfd1 {[%clk 0:02:37]}  b5 {[%clk 0:02:14]} 18. Bh4 {[%clk 0:02:32]}  g5 {[%clk 0:02:08]} 19. Bg3 {[%clk 0:02:30]}  Bb7 {[%clk 0:02:07]} 20. Bf5 {[%clk 0:02:27]}  Rad8 {[%clk 0:02:02]} 21. Qe2 {[%clk 0:02:24]}  Kg7 {[%clk 0:01:58]} 22. h4 {[%clk 0:02:25]}  Qe7 {[%clk 0:01:47]} 23. a4 {[%clk 0:02:11]}  b4 {[%clk 0:01:40]} 24. a5 {[%clk 0:02:09]}  bxc3 {[%clk 0:01:31]} 25. bxc3 {[%clk 0:02:09]}  Bc8 {[%clk 0:01:11]} 26. Bxc8 {[%clk 0:02:08]}  Rxc8 {[%clk 0:01:12]} 27. hxg5 {[%clk 0:02:05]}  hxg5 {[%clk 0:01:09]} 28. Qxa6 {[%clk 0:02:05]}  Rh8 {[%clk 0:00:56]} 29. Rab1 {[%clk 0:02:04]}  Ne4 {[%clk 0:00:51]} 30. Rb7 {[%clk 0:02:00]}  Nxg3 {[%clk 0:00:45]} 31. fxg3 {[%clk 0:01:58]}  Qc5 {[%clk 0:00:46]} 32. Qe2 {[%clk 0:01:43]}  Qxa5 {[%clk 0:00:38]} 33. Qg4 {[%clk 0:01:36]}  Qd8 {[%clk 0:00:31]} 34. Rf1 {[%clk 0:01:33]}  Rf8 {[%clk 0:00:30]} 35. Rf5 {[%clk 0:01:33]}  Rc6 {[%clk 0:00:27]} 1-0


[Site "https://www.chess.com"]

[Event "Titled Tuesday Blitz February 21 Late 2023"]
[White "Quispe Arteaga, Gabriel"]
[Black "Sztokbant, Bernardo Vainzoff"]
[WhiteFideId "32059809"]
[BlackFideId "2115956"]
[WhiteElo "2381"]
[BlackElo "2213"]
[Result "1-0"]
[Round "04"]
[TimeControl "180+2"]
[Date "2023.02.21"]
[WhiteClock "0:00:36"]
[BlackClock "0:00:10"]

1. c4 {[%clk 0:03:00]}  c6 {[%clk 0:02:58]} 2. Nf3 {[%clk 0:03:00]}  d5 {[%clk 0:02:59]} 3. e3 {[%clk 0:03:01]}  Nf6 {[%clk 0:02:59]} 4. Nc3 {[%clk 0:03:02]}  g6 {[%clk 0:03:00]} 5. d4 {[%clk 0:02:50]}  Bg7 {[%clk 0:02:59]} 6. b3 {[%clk 0:02:51]}  O-O {[%clk 0:02:57]} 7. Bb2 {[%clk 0:02:52]}  Re8 {[%clk 0:02:53]} 8. Be2 {[%clk 0:02:49]}  Bf5 {[%clk 0:02:51]} 9. O-O {[%clk 0:02:49]}  Nbd7 {[%clk 0:02:51]} 10. Rc1 {[%clk 0:02:29]}  Ne4 {[%clk 0:02:50]} 11. Nxe4 {[%clk 0:02:19]}  Bxe4 {[%clk 0:02:50]} 12. Nd2 {[%clk 0:02:13]}  Bf5 {[%clk 0:02:50]} 13. Bf3 {[%clk 0:02:13]}  Nf6 {[%clk 0:02:48]} 14. Re1 {[%clk 0:02:12]}  Qa5 {[%clk 0:02:37]} 15. a3 {[%clk 0:02:09]}  Bh6 {[%clk 0:02:24]} 16. h4 {[%clk 0:02:02]}  Rac8 {[%clk 0:02:11]} 17. b4 {[%clk 0:01:59]}  Qd8 {[%clk 0:02:07]} 18. g4 {[%clk 0:01:59]}  Be6 {[%clk 0:01:45]} 19. g5 {[%clk 0:01:58]}  Bg7 {[%clk 0:01:46]} 20. gxf6 {[%clk 0:01:58]}  Bxf6 {[%clk 0:01:47]} 21. Bg4 {[%clk 0:01:52]}  Qd7 {[%clk 0:01:40]} 22. Bxe6 {[%clk 0:01:52]}  Qxe6 {[%clk 0:01:41]} 23. Qf3 {[%clk 0:01:51]}  Bxh4 {[%clk 0:01:25]} 24. Kg2 {[%clk 0:01:51]}  Bf6 {[%clk 0:01:22]} 25. cxd5 {[%clk 0:01:37]}  cxd5 {[%clk 0:01:22]} 26. Qh3 {[%clk 0:01:37]}  Qxh3+ {[%clk 0:01:04]} 27. Kxh3 {[%clk 0:01:30]}  e6 {[%clk 0:01:04]} 28. b5 {[%clk 0:01:22]}  Be7 {[%clk 0:01:02]} 29. Nb3 {[%clk 0:01:20]}  b6 {[%clk 0:00:57]} 30. Rxc8 {[%clk 0:00:54]}  Rxc8 {[%clk 0:00:58]} 31. Rc1 {[%clk 0:00:55]}  Rxc1 {[%clk 0:00:49]} 32. Nxc1 {[%clk 0:00:56]}  Bd6 {[%clk 0:00:42]} 33. Nd3 {[%clk 0:00:54]}  f6 {[%clk 0:00:41]} 34. a4 {[%clk 0:00:54]}  Kf7 {[%clk 0:00:39]} 35. Bc3 {[%clk 0:00:55]}  h5 {[%clk 0:00:35]} 36. Bb4 {[%clk 0:00:55]}  Bc7 {[%clk 0:00:35]} 37. Ba3 {[%clk 0:00:53]}  e5 {[%clk 0:00:33]} 38. Bb2 {[%clk 0:00:50]}  Ke6 {[%clk 0:00:27]} 39. Nb4 {[%clk 0:00:49]}  Kd6 {[%clk 0:00:18]} 40. Nc6 {[%clk 0:00:47]}  a5 {[%clk 0:00:18]} 41. dxe5+ {[%clk 0:00:47]}  fxe5 {[%clk 0:00:17]} 42. Bxe5+ {[%clk 0:00:48]}  Kd7 {[%clk 0:00:17]} 43. Bd4 {[%clk 0:00:39]}  Ke6 {[%clk 0:00:16]} 44. f4 {[%clk 0:00:35]}  Kf5 {[%clk 0:00:16]} 45. Ne7+ {[%clk 0:00:35]}  Ke4 {[%clk 0:00:15]} 46. Nxg6 {[%clk 0:00:35]}  Kd3 {[%clk 0:00:13]} 47. f5 {[%clk 0:00:35]}  Kc4 {[%clk 0:00:11]} 48. f6 {[%clk 0:00:36]}  Bd6 {[%clk 0:00:11]} 49. f7 {[%clk 0:00:35]}  Kb4 {[%clk 0:00:10]} 50. Bf6 {[%clk 0:00:35]}  Kxa4 {[%clk 0:00:10]} 51. Be7 {[%clk 0:00:36]} 1-0


[Site "https://www.chess.com"]

[Event "Titled Tuesday Blitz February 21 Late 2023"]
[White "Kaplan, Avi Harrison"]
[Black "Bilych, Olexiy"]
[WhiteFideId "30934559"]
[BlackFideId "14156504"]
[WhiteElo "2146"]
[BlackElo "2441"]
[Result "0-1"]
[Round "04"]
[TimeControl "180+2"]
[Date "2023.02.21"]
[WhiteClock "0:00:52"]
[BlackClock "0:01:31"]

1. e4 {[%clk 0:03:00]}  e5 {[%clk 0:03:00]} 2. c4 {[%clk 0:02:58]}  Nf6 {[%clk 0:02:59]} 3. Nc3 {[%clk 0:02:58]}  Bc5 {[%clk 0:02:59]} 4. g3 {[%clk 0:02:56]}  d6 {[%clk 0:02:59]} 5. Bg2 {[%clk 0:02:54]}  Nc6 {[%clk 0:02:55]} 6. Nge2 {[%clk 0:02:52]}  Nd4 {[%clk 0:02:55]} 7. O-O {[%clk 0:02:51]}  c6 {[%clk 0:02:55]} 8. d3 {[%clk 0:02:51]}  Bg4 {[%clk 0:02:54]} 9. Be3 {[%clk 0:02:45]}  Nxe2+ {[%clk 0:02:27]} 10. Nxe2 {[%clk 0:02:43]}  Bxe3 {[%clk 0:02:28]} 11. fxe3 {[%clk 0:02:43]}  Qd7 {[%clk 0:02:27]} 12. Qd2 {[%clk 0:02:26]}  h5 {[%clk 0:02:27]} 13. d4 {[%clk 0:02:21]}  h4 {[%clk 0:02:24]} 14. dxe5 {[%clk 0:02:20]}  dxe5 {[%clk 0:02:25]} 15. Qxd7+ {[%clk 0:02:20]}  Nxd7 {[%clk 0:02:25]} 16. Nc3 {[%clk 0:02:18]}  hxg3 {[%clk 0:02:24]} 17. hxg3 {[%clk 0:02:18]}  Nc5 {[%clk 0:02:22]} 18. Bf3 {[%clk 0:02:13]}  Bxf3 {[%clk 0:02:13]} 19. Rxf3 {[%clk 0:02:13]}  Ke7 {[%clk 0:02:14]} 20. Rd1 {[%clk 0:02:11]}  Rh3 {[%clk 0:02:06]} 21. Kg2 {[%clk 0:01:48]}  Rah8 {[%clk 0:02:06]} 22. Rf2 {[%clk 0:01:48]}  Rh2+ {[%clk 0:02:03]} 23. Kf3 {[%clk 0:01:48]}  Rxf2+ {[%clk 0:02:04]} 24. Kxf2 {[%clk 0:01:48]}  Rh2+ {[%clk 0:02:05]} 25. Kf3 {[%clk 0:01:49]}  Rxb2 {[%clk 0:02:06]} 26. Rb1 {[%clk 0:01:47]}  Rxb1 {[%clk 0:02:02]} 27. Nxb1 {[%clk 0:01:48]}  Ne6 {[%clk 0:01:58]} 28. Kg4 {[%clk 0:01:45]}  g6 {[%clk 0:01:53]} 29. Nd2 {[%clk 0:01:40]}  Kd6 {[%clk 0:01:52]} 30. Nb3 {[%clk 0:01:39]}  b6 {[%clk 0:01:51]} 31. Kf3 {[%clk 0:01:37]}  a5 {[%clk 0:01:51]} 32. Ke2 {[%clk 0:01:37]}  a4 {[%clk 0:01:50]} 33. Nd2 {[%clk 0:01:36]}  Kc5 {[%clk 0:01:49]} 34. Kd3 {[%clk 0:01:36]}  Kb4 {[%clk 0:01:48]} 35. Kc2 {[%clk 0:01:36]}  Ka3 {[%clk 0:01:46]} 36. Kb1 {[%clk 0:01:35]}  Nc5 {[%clk 0:01:46]} 37. g4 {[%clk 0:01:32]}  g5 {[%clk 0:01:43]} 38. Ka1 {[%clk 0:01:31]}  b5 {[%clk 0:01:41]} 39. cxb5 {[%clk 0:01:26]}  cxb5 {[%clk 0:01:42]} 40. Kb1 {[%clk 0:01:26]}  Kb4 {[%clk 0:01:37]} 41. Kc2 {[%clk 0:01:25]}  f6 {[%clk 0:01:33]} 42. Kb2 {[%clk 0:01:12]}  Nd3+ {[%clk 0:01:33]} 43. Kc2 {[%clk 0:01:13]}  Nf2 {[%clk 0:01:34]} 44. Kb2 {[%clk 0:01:09]}  Nxg4 {[%clk 0:01:34]} 45. a3+ {[%clk 0:01:09]}  Kc5 {[%clk 0:01:33]} 46. Nf1 {[%clk 0:01:09]}  Nf2 {[%clk 0:01:31]} 47. Kc3 {[%clk 0:01:10]}  Nxe4+ {[%clk 0:01:31]} 48. Kd3 {[%clk 0:01:11]}  Nd6 {[%clk 0:01:32]} 49. Kc2 {[%clk 0:01:11]}  e4 {[%clk 0:01:32]} 50. Kb1 {[%clk 0:01:10]}  f5 {[%clk 0:01:32]} 51. Nh2 {[%clk 0:00:57]}  Nc4 {[%clk 0:01:30]} 52. Kc2 {[%clk 0:00:57]}  Nxe3+ {[%clk 0:01:30]} 53. Kb2 {[%clk 0:00:56]}  Nc4+ {[%clk 0:01:30]} 54. Ka2 {[%clk 0:00:56]}  g4 {[%clk 0:01:30]} 55. Nf1 {[%clk 0:00:55]}  f4 {[%clk 0:01:31]} 56. Nh2 {[%clk 0:00:55]}  g3 {[%clk 0:01:31]} 57. Nf1 {[%clk 0:00:56]}  g2 {[%clk 0:01:31]} 58. Nh2 {[%clk 0:00:52]}  g1=Q {[%clk 0:01:31]} 59. Nf1 {[%clk 0:00:53]}  Qf2+ {[%clk 0:01:31]} 60. Kb1 {[%clk 0:00:52]}  Qb2# {[%clk 0:01:31]} 0-1


[Site "https://www.chess.com"]

[Event "Titled Tuesday Blitz February 21 Late 2023"]
[White "Hambleton, Aman"]
[Black "Nygren, Kim"]
[WhiteFideId "2606577"]
[BlackFideId "1706136"]
[WhiteElo "2420"]
[BlackElo "2183"]
[Result "1-0"]
[Round "04"]
[TimeControl "180+2"]
[Date "2023.02.21"]
[WhiteClock "0:00:02"]
[BlackClock "0:00:01"]

1. d4 {[%clk 0:02:57]}  Nf6 {[%clk 0:02:59]} 2. Bf4 {[%clk 0:02:57]}  g6 {[%clk 0:02:57]} 3. Nc3 {[%clk 0:02:57]}  c5 {[%clk 0:02:52]} 4. e3 {[%clk 0:02:44]}  Bg7 {[%clk 0:02:49]} 5. Nf3 {[%clk 0:02:43]}  O-O {[%clk 0:02:48]} 6. h3 {[%clk 0:02:43]}  cxd4 {[%clk 0:02:46]} 7. exd4 {[%clk 0:02:44]}  d6 {[%clk 0:02:44]} 8. Be2 {[%clk 0:02:44]}  Qb6 {[%clk 0:02:43]} 9. a3 {[%clk 0:02:41]}  Bf5 {[%clk 0:02:32]} 10. Rb1 {[%clk 0:02:31]}  Ne4 {[%clk 0:02:27]} 11. Nxe4 {[%clk 0:02:14]}  Bxe4 {[%clk 0:02:26]} 12. O-O {[%clk 0:02:15]}  Nc6 {[%clk 0:02:22]} 13. d5 {[%clk 0:02:02]}  Nd4 {[%clk 0:02:08]} 14. Nxd4 {[%clk 0:01:31]}  Bxd4 {[%clk 0:02:09]} 15. Bf3 {[%clk 0:01:32]}  Bf5 {[%clk 0:01:54]} 16. g4 {[%clk 0:01:27]}  Bd7 {[%clk 0:01:53]} 17. c3 {[%clk 0:01:25]}  Bg7 {[%clk 0:01:52]} 18. Re1 {[%clk 0:01:24]}  Rfe8 {[%clk 0:01:52]} 19. Qd2 {[%clk 0:01:18]}  a5 {[%clk 0:01:51]} 20. Bg5 {[%clk 0:01:07]}  Bf8 {[%clk 0:01:48]} 21. Re4 {[%clk 0:01:00]}  Rac8 {[%clk 0:01:31]} 22. Rbe1 {[%clk 0:00:59]}  e6 {[%clk 0:01:21]} 23. dxe6 {[%clk 0:01:00]}  Rxe6 {[%clk 0:01:20]} 24. Be3 {[%clk 0:00:39]}  Qc6 {[%clk 0:00:57]} 25. Bd4 {[%clk 0:00:28]}  d5 {[%clk 0:00:53]} 26. Rxe6 {[%clk 0:00:21]}  Bxe6 {[%clk 0:00:52]} 27. Qf4 {[%clk 0:00:19]}  Bc5 {[%clk 0:00:38]} 28. Rd1 {[%clk 0:00:14]}  Bxd4 {[%clk 0:00:36]} 29. Rxd4 {[%clk 0:00:15]}  Qb6 {[%clk 0:00:30]} 30. Qd2 {[%clk 0:00:15]}  Rc5 {[%clk 0:00:28]} 31. Kg2 {[%clk 0:00:08]}  Kg7 {[%clk 0:00:26]} 32. Kg3 {[%clk 0:00:03]}  h6 {[%clk 0:00:25]} 33. h4 {[%clk 0:00:03]}  Qc7+ {[%clk 0:00:24]} 34. Qf4 {[%clk 0:00:03]}  Qb6 {[%clk 0:00:22]} 35. Qe5+ {[%clk 0:00:02]}  Kg8 {[%clk 0:00:21]} 36. Qe2 {[%clk 0:00:02]}  Qd6+ {[%clk 0:00:18]} 37. Kg2 {[%clk 0:00:02]}  b5 {[%clk 0:00:17]} 38. Qe3 {[%clk 0:00:02]}  Kg7 {[%clk 0:00:16]} 39. g5 {[%clk 0:00:02]}  hxg5 {[%clk 0:00:15]} 40. hxg5 {[%clk 0:00:02]}  Rc4 {[%clk 0:00:14]} 41. Be2 {[%clk 0:00:02]}  Rc5 {[%clk 0:00:12]} 42. b4 {[%clk 0:00:03]}  axb4 {[%clk 0:00:12]} 43. axb4 {[%clk 0:00:04]}  Rc8 {[%clk 0:00:10]} 44. Bxb5 {[%clk 0:00:01]}  Rh8 {[%clk 0:00:08]} 45. Qg3 {[%clk 0:00:02]}  Qxg3+ {[%clk 0:00:05]} 46. fxg3 {[%clk 0:00:01]}  Rc8 {[%clk 0:00:02]} 47. Rd3 {[%clk 0:00:01]}  Bf5 {[%clk 0:00:02]} 48. Re3 {[%clk 0:00:02]}  Be4+ {[%clk 0:00:03]} 49. Kf2 {[%clk 0:00:03]}  Ra8 {[%clk 0:00:02]} 50. Bc6 {[%clk 0:00:02]}  Ra2+ {[%clk 0:00:03]} 51. Ke1 {[%clk 0:00:03]}  Ra1+ {[%clk 0:00:03]} 52. Kd2 {[%clk 0:00:03]}  Ra2+ {[%clk 0:00:04]} 53. Kc1 {[%clk 0:00:04]}  Rc2+ {[%clk 0:00:04]} 54. Kd1 {[%clk 0:00:04]}  Rg2 {[%clk 0:00:04]} 55. b5 {[%clk 0:00:04]}  Rb2 {[%clk 0:00:04]} 56. c4 {[%clk 0:00:03]}  f5 {[%clk 0:00:01]} 57. cxd5 {[%clk 0:00:02]} 1-0


[Site "https://www.chess.com"]

[Event "Titled Tuesday Blitz February 21 Late 2023"]
[White "Drnovsek, Gal"]
[Black "Golubka, Petro"]
[WhiteFideId "14607077"]
[BlackFideId "14114224"]
[WhiteElo "2397"]
[BlackElo "2371"]
[Result "0-1"]
[Round "04"]
[TimeControl "180+2"]
[Date "2023.02.21"]
[WhiteClock "0:01:19"]
[BlackClock "0:01:02"]

1. e4 {[%clk 0:02:55]}  c5 {[%clk 0:02:59]} 2. c3 {[%clk 0:02:55]}  e5 {[%clk 0:02:58]} 3. Nf3 {[%clk 0:02:54]}  Nc6 {[%clk 0:02:58]} 4. Bc4 {[%clk 0:02:55]}  Bd6 {[%clk 0:02:57]} 5. d3 {[%clk 0:02:51]}  Nf6 {[%clk 0:02:56]} 6. Nbd2 {[%clk 0:02:43]}  O-O {[%clk 0:02:56]} 7. Nf1 {[%clk 0:02:43]}  Na5 {[%clk 0:02:51]} 8. Bb5 {[%clk 0:02:38]}  a6 {[%clk 0:02:46]} 9. Ba4 {[%clk 0:02:36]}  b5 {[%clk 0:02:47]} 10. Bc2 {[%clk 0:02:36]}  Bc7 {[%clk 0:02:39]} 11. Ne3 {[%clk 0:02:36]}  d5 {[%clk 0:02:34]} 12. exd5 {[%clk 0:02:32]}  Nxd5 {[%clk 0:02:33]} 13. d4 {[%clk 0:02:33]}  exd4 {[%clk 0:02:19]} 14. cxd4 {[%clk 0:02:32]}  cxd4 {[%clk 0:02:12]} 15. Nxd4 {[%clk 0:02:15]}  Nxe3 {[%clk 0:02:10]} 16. Bxe3 {[%clk 0:02:16]}  Nc4 {[%clk 0:02:10]} 17. Qd3 {[%clk 0:02:14]}  g6 {[%clk 0:02:09]} 18. O-O-O {[%clk 0:01:57]}  Qf6 {[%clk 0:01:16]} 19. Bh6 {[%clk 0:01:47]}  Bf4+ {[%clk 0:01:14]} 20. Bxf4 {[%clk 0:01:44]}  Qxf4+ {[%clk 0:01:15]} 21. Kb1 {[%clk 0:01:44]}  Qxf2 {[%clk 0:01:15]} 22. Rhf1 {[%clk 0:01:37]}  Qxg2 {[%clk 0:01:14]} 23. Nf5 {[%clk 0:01:30]}  Bxf5 {[%clk 0:01:13]} 24. Rxf5 {[%clk 0:01:30]}  Rad8 {[%clk 0:01:10]} 25. Qf1 {[%clk 0:01:19]}  Rxd1+ {[%clk 0:01:02]} 0-1


[Site "https://www.chess.com"]

[Event "Titled Tuesday Blitz February 21 Late 2023"]
[White "Koziorowicz, Michal"]
[Black "Filgueira, Hernan"]
[WhiteFideId "21809194"]
[BlackFideId "101770"]
[WhiteElo "2307"]
[BlackElo "2283"]
[Result "1-0"]
[Round "04"]
[TimeControl "180+2"]
[Date "2023.02.21"]
[WhiteClock "0:00:58"]
[BlackClock "0:00:07"]

1. Nc3 {[%clk 0:02:49]}  d6 {[%clk 0:02:59]} 2. e4 {[%clk 0:02:49]}  Nf6 {[%clk 0:02:58]} 3. d4 {[%clk 0:02:48]}  e5 {[%clk 0:02:57]} 4. Nf3 {[%clk 0:02:46]}  Nbd7 {[%clk 0:02:56]} 5. Bc4 {[%clk 0:02:46]}  Be7 {[%clk 0:02:56]} 6. O-O {[%clk 0:02:42]}  O-O {[%clk 0:02:55]} 7. a4 {[%clk 0:02:42]}  c6 {[%clk 0:02:53]} 8. h3 {[%clk 0:02:40]}  a5 {[%clk 0:02:52]} 9. Be3 {[%clk 0:02:39]}  h6 {[%clk 0:02:46]} 10. Bb3 {[%clk 0:02:38]}  exd4 {[%clk 0:02:40]} 11. Nxd4 {[%clk 0:02:37]}  Nc5 {[%clk 0:02:40]} 12. f3 {[%clk 0:02:33]}  Nxb3 {[%clk 0:02:37]} 13. Nxb3 {[%clk 0:02:34]}  Re8 {[%clk 0:02:31]} 14. Bf2 {[%clk 0:02:33]}  Bf8 {[%clk 0:02:30]} 15. Re1 {[%clk 0:02:33]}  Be6 {[%clk 0:02:18]} 16. Nd4 {[%clk 0:02:33]}  d5 {[%clk 0:02:18]} 17. Nxe6 {[%clk 0:02:30]}  Rxe6 {[%clk 0:02:16]} 18. exd5 {[%clk 0:02:26]}  Rxe1+ {[%clk 0:02:15]} 19. Qxe1 {[%clk 0:02:22]}  Nxd5 {[%clk 0:02:09]} 20. Rd1 {[%clk 0:02:22]}  Bb4 {[%clk 0:02:08]} 21. Bd4 {[%clk 0:02:17]}  Qg5 {[%clk 0:01:58]} 22. Ne4 {[%clk 0:02:06]}  Qg6 {[%clk 0:01:28]} 23. c3 {[%clk 0:02:05]}  Bf8 {[%clk 0:01:25]} 24. Qg3 {[%clk 0:02:05]}  Qxg3 {[%clk 0:01:14]} 25. Nxg3 {[%clk 0:02:05]}  Re8 {[%clk 0:01:13]} 26. Kf2 {[%clk 0:02:05]}  c5 {[%clk 0:01:09]} 27. Bxg7 {[%clk 0:02:01]}  Nf4 {[%clk 0:00:37]} 28. Bxf8 {[%clk 0:02:00]}  Kxf8 {[%clk 0:00:38]} 29. c4 {[%clk 0:01:45]}  Re6 {[%clk 0:00:26]} 30. Ne4 {[%clk 0:01:35]}  Rb6 {[%clk 0:00:25]} 31. Kg3 {[%clk 0:01:16]}  Ne6 {[%clk 0:00:24]} 32. Rd7 {[%clk 0:01:01]}  Rxb2 {[%clk 0:00:13]} 33. Nd6 {[%clk 0:01:01]}  Nd4 {[%clk 0:00:07]} 34. Rxf7+ {[%clk 0:00:58]}  Kg8 {[%clk 0:00:07]} 35. Rxb7 {[%clk 0:00:58]} 1-0


[Site "https://www.chess.com"]